Cogmind - Beta 16 @@@ ROGUE MODE // 2025.12.09 @ 10:24:37 Player: Mozco Result: Destroyed by DW-4LL with DW-4LL's Slamshotty Performance ------------- Evolutions (5) 2500 Regions Visited (10) 2000 Robots Destroyed (129) 645 Value Destroyed (6227) 6227 Prototype IDs (42) 840 Alien Tech Used (0) 0 Bonus (4621) 4621 TOTAL SCORE: 16833 Bonus ------- High Alert Combat Kills 1528 Follower Combat Kills 1040 Network Hubs Disabled 800 Registered with UFD 300 Met Optimus in HQ 500 Met R17 at Cetus 500 Friendly Fire -47 Cogmind --------- Core Integrity 0/1000 Matter 24/300 Energy 100/100 System Corruption 63% Temperature Cool (0) Movement Core (50) Location -5/Upper Caves Parts ------- > --- POWER (3) -------- (None) > --- PROPULSION (5) --- (None) > --- UTILITY (6) ------ (None) > --- WEAPON (3) ------- (None) > --- INVENTORY (5) ---- Improved Thermal Shield EMDS EMDS Peak State ------------ > --- POWER ------------ Quantum Reactor > --- PROPULSION ------- Centrium Heavy Treads Centrium Heavy Treads Enhanced Biometal Leg > --- UTILITY ---------- Experimental Heat Sink High-capacity Storage Unit Surveybot 17 Chip Centrium Medium Armor Plating Experimental EM Shield System Guard Rainbow Chip > --- WEAPON ----------- Heavy Plasma Cannon Hypervelocity Gauss Rifle Hypervelocity Gauss Rifle Advanced KE Penetrator > --- INVENTORY -------- Quantum Reactor Quantum Reactor Centrium Heavy Treads Enhanced Biometal Leg IFF Parser Advanced Terrain Scanner Experimental Targeting Computer Experimental Phase Shifter Cloaking Device Centrium Medium Armor Plating Centrium Medium Armor Plating EMDS EMDS KE Penetrator Advanced KE Penetrator Multitool Vortex Trap [Rating: 144] Favorites ----------- Power Light Ion Engine Engine Light Ion Engine Power Core Fission Core Reactor Quantum Reactor Propulsion Improved Aluminum Leg Treads Light Treads Leg Improved Aluminum Leg Utility High-capacity Storage Unit Device Recoil Stabilizer Storage High-capacity Storage Unit Processor Surveybot 17 Chip Hackware System Shield Protection Scrap Shield Weapon Heavy Assault Rifle Energy Gun Advanced Variable Charge Gun Energy Cannon Subdweller Beam Cannon Ballistic Gun Heavy Assault Rifle Ballistic Cannon Bore Cannon Launcher Subdweller Shrapnel Launcher Special Weapon Mining Laser Special Melee Weapon Dirty Datajack Build | -11 -10 -10 -8 -6 -6 -6 -6 -6 -5 -5 ------- Run | Yrd Mat Sub Scr Fac Ext Cet Arc Hub Fac Upp Slots Evolved 10 | . . . . 8 . . . . 2 . Power 2 | . . . . . . . . . 2 . Propulsion 3 | . . . . 3 . . . . . . Utility 4 | . . . . 4 . . . . . . Weapon 1 | . . . . 1 . . . . . . Parts Attached 143 | 6 9 15 9 16 27 12 2 37 3 7 Power 19 | 1 . 3 1 2 2 2 . 6 . 2 Engine 6 | 1 . 3 . 1 1 . . . . . Core 5 | . . . 1 1 1 1 . 1 . . Reactor 8 | . . . . . . 1 . 5 . 2 Propulsion 35 | 2 1 2 . 7 9 4 1 8 1 . Treads 9 | 2 1 . . . . 3 1 2 . . Leg 26 | . . 2 . 7 9 1 . 6 1 . Wheel . | . . . . . . . . . . . Hover . | . . . . . . . . . . . Flight . | . . . . . . . . . . . Utility 46 | 1 6 2 3 6 8 3 1 12 2 2 Device 15 | . . . 1 1 3 . 1 8 1 . Storage 4 | 1 3 . . . . . . . . . Processor 10 | . . . 1 2 2 . . 3 1 1 Hackware 4 | . 1 . . 1 2 . . . . . Protection 13 | . 2 2 1 2 1 3 . 1 . 1 Artifact . | . . . . . . . . . . . Weapon 43 | 2 2 8 5 1 8 3 . 11 . 3 Energy Gun 6 | 1 . 1 . . . . . 3 . 1 Energy Cannon 6 | . . 1 1 . 1 . . 2 . 1 Ballistic Gun 22 | 1 2 4 2 1 3 3 . 5 . 1 Ballistic Cannon 4 | . . . . . 4 . . . . . Launcher 1 | . . 1 . . . . . . . . Special Weapon 2 | . . 1 . . . . . 1 . . Impact Weapon . | . . . . . . . . . . . Slashing Weapon . | . . . . . . . . . . . Piercing Weapon . | . . . . . . . . . . . Special Melee Weapon 2 | . . . 2 . . . . . . . Unidentified Prototypes 12 | . . . . . . 3 . 8 . 1 Corrupted Parts 2 | . . . . . . . . 1 . 1 System Corruption 4 | . . . . . . . . 2 . 2 Parts Lost 46 | . . 3 . . 1 2 . 20 2 18 Power 9 | . . 1 . . . . . 4 . 4 Propulsion 9 | . . . . . . 2 . 3 . 4 Utility 15 | . . 1 . . . . . 7 2 5 Weapon 13 | . . 1 . . 1 . . 6 . 5 Highest Loss Streak 18 | . . 2 . . 1 2 . 7 2 18 To Critical Strikes 2 | . . . . . . . . . . 2 Average Backups 13 | 1 14 6 18 17 17 18 16 14 15 15 Power . | . 1 . . . 1 1 2 2 2 1 Propulsion 2 | . 4 2 3 1 3 2 2 1 2 1 Utility 4 | . 2 . 7 9 8 7 7 5 7 8 Weapon 3 | . 5 2 5 3 2 4 3 3 4 3 Tool/Special . | . . . . . . . . . . . Unused Backups 28 | . 4 5 4 3 1 2 . 3 . 6 Power 2 | . . . 1 1 . . . . . . Propulsion 4 | . 1 1 1 . . . . . . 1 Utility 11 | . 1 2 1 2 . . . 2 . 3 Weapon 10 | . 2 2 1 . 1 2 . . . 2 Tool/Special 1 | . . . . . . . . 1 . . Average Slot Usage (%) 88 | . 98 84 90 90 88 89 84 82 93 78 Engine 9 | . 13 13 9 1 1 . . . . . Core 2 | . . . 4 4 5 7 5 2 . . Reactor 1 | . . . . . . 1 5 5 16 14 Treads 12 | . 27 22 . . . 6 15 11 . . Leg 15 | . . 5 27 32 30 18 5 8 29 26 Device 1 | . . . . 1 3 10 5 7 11 2 Storage 7 | . 14 2 13 6 5 5 5 4 5 4 Processor 3 | . . . . 6 14 10 10 12 16 8 Protection 8 | . 12 11 6 9 4 5 9 6 . 7 Energy Cannon 4 | . . 2 10 6 2 5 5 3 4 1 Ballistic Gun 17 | . 24 22 15 11 7 12 15 13 . 2 Peak Build Rating 144 | 6 14 15 24 59 97 132 139 144 137 133 Average Rating 37 | 4 10 12 18 54 75 111 137 125 134 108 On Entrance 64 | . 6 11 15 24 59 95 132 139 110 119 Avg Prop Armor Cover (%) 2 | . . 3 . . . 2 1 3 . . Naked Turns 4 | . . . . . . . . . . 4 Heaviest Build 140 | 14 54 54 64 82 105 119 124 124 128 140 Greatest Support 183 | 40 40 40 26 71 103 180 183 183 130 130 Greatest Overweight (x) 14 | . 1 2 14 1 1 1 . 2 1 2 Average Overweight (x) . | . . . 1 . . . . . . . Largest Inventory Capacity 20 | 8 20 20 20 20 20 20 20 20 20 20 Average Capacity 14 | 6 17 7 19 20 20 20 20 18 20 19 Most Carried 20 | 2 19 20 20 20 20 20 20 20 20 20 Average Carried 14 | 1 14 7 19 19 19 19 19 17 18 18 Final Capacity 20 | 8 20 20 20 20 20 20 20 20 20 5 Final Carried 20 | 2 18 20 20 20 20 20 20 20 20 5 Class Distribution -------------------- 73% | Mutant 10% | Scavenger-Tank 4% | Scavenger-Skirmisher 3% | Scavenger-Mutant 3% | Commander-Tank Dominant Class ---------------- Mutant | -10/Materials Mutant | -10/Subcaves Mutant | -8/Scraptown Scavenger-Tank | -6/Factory Scavenger-Mutant | -6/Extension Commander-Tank | -6/Cetus Scavenger-Tank | -6/Archives Scavenger-Tank | -6/Hub_04(d) Scavenger-Skirmisher | -5/Factory Scavenger-Skirmisher | -5/Upper Caves Resources | -11 -10 -10 -8 -6 -6 -6 -6 -6 -5 -5 ----------- Run | Yrd Mat Sub Scr Fac Ext Cet Arc Hub Fac Upp Matter Collected 5869 | 245 316 1181 192 540 843 495 114 1842 30 71 Remotely . | . . . . . . . . . . . Salvage Created 6950 | . 514 1207 . 717 885 127 170 3199 60 71 Parts 374 | . 39 80 . 24 40 6 3 175 2 5 Haulers Intercepted 4 | . 2 . . 1 . . . 1 . . Recyclers Shooed 3 | . 1 . . 1 . . . 1 . . Parts Field Recycled . | . . . . . . . . . . . Retrieved Matter . | . . . . . . . . . . . Parts Self-Destructed 13 | . . 13 . . . . . . . . Prevented . | . . . . . . . . . . . Parts Restored . | . . . . . . . . . . . Kills | -11 -10 -10 -8 -6 -6 -6 -6 -6 -5 -5 ------- Run | Yrd Mat Sub Scr Fac Ext Cet Arc Hub Fac Upp Combat Hostiles Destroyed 101 | . 12 26 . 6 11 2 2 41 . 1 Melee 1 | . . . . . . . . 1 . . Guns 80 | . 12 25 . 3 4 . 2 34 . . Cannons 14 | . . . . 2 7 2 . 2 . 1 AOE 2 | . . . . . . . . 2 . . Classes Destroyed 20 | . 7 3 . 2 3 . . 4 . 1 Worker 10 | . 1 . . . . . . 9 . . Builder 2 | . 1 . . . 1 . . . . . Hauler 4 | . 2 . . 1 . . . 1 . . Recycler 5 | . 1 . . 2 1 . . 1 . . Operator 4 | . 2 . . . . . . 1 1 . Watcher 2 | . . . . . 1 . . . 1 . Swarmer 11 | . 6 4 . . . . . 1 . . Saboteur 1 | . . . . . . . . 1 . . Grunt 30 | . 6 . . 4 6 . . 14 . . Brawler 1 | . . . . . . . . 1 . . Duelist 2 | . . . . 1 . . . 1 . . Protector 2 | . . . . . . . . 2 . . Sentry 12 | . . 1 . . 4 . 2 5 . . Hunter 3 | . . . . . 1 . . 2 . . Programmer 6 | . . . . 1 . . . 5 . . Heavy 1 | . . . . . . . . 1 . . Behemoth 1 | . . . . . 1 . . . . . Cetus Guard 2 | . . . . . . 2 . . . . Lightning 8 | . . . . . . . . 8 . . Artisan 2 | . . 2 . . . . . . . . Subdweller 21 | . . 21 . . . . . . . . Mutant 1 | . . . . . . . . . . 1 Best Kill Streak 8 | . 3 3 . 3 3 1 1 8 1 1 Combat Bots Only 7 | . 3 3 . 3 2 1 1 7 . 1 Max Kills in Single Turn 4 | . 2 1 . 1 1 1 1 4 1 1 Gunslinging 1 | . 1 . . . . . . 1 . . Exploded 1 | . . . . . . . . 1 . . Melee 1 | . . . . . . . . 1 . . Uniques/NPCs Destroyed . | . . . . . . . . . . . Combat | -11 -10 -10 -8 -6 -6 -6 -6 -6 -5 -5 -------- Run | Yrd Mat Sub Scr Fac Ext Cet Arc Hub Fac Upp Hostile Shots Fired 1319 | . 61 154 . 30 129 36 11 670 33 195 Missed 355 | . 17 38 . 5 55 9 3 175 8 45 Hits 964 | . 44 116 . 25 74 27 8 495 25 150 Melee 9 | . . . . 3 . . . 6 . . Projectile 955 | . 44 116 . 22 74 27 8 489 25 150 AOE 3 | . . 3 . . . . . . . . Critical Strikes 64 | . 2 1 . 3 2 4 . 46 . 6 Part Disruptions 5 | . . . . . . . . 5 . . Damage Taken 16324 | . 401 2138 . 504 897 722 195 7198 257 4012 Core 1755 | . 49 160 . 87 26 71 . 360 46 956 Absorbed by Shields 178 | . . . . . 178 . . . . . Reduced by Siege Mode 450 | . . . . . . . . 450 . . Ignored by Resistances 4924 | . . . . . . . . 4924 . . Regen/Repaired (Parts) 964 | . 244 . . . . . . . 720 . Core Remaining (%) 50 | 100 . . 16 . . . . 36 . . Volleys Fired 533 | . 46 198 . 33 47 15 7 152 11 24 Largest 4 | . 2 2 . 3 3 3 4 4 1 3 Hottest 191 | . 70 123 . 111 144 114 190 191 80 136 Shots Fired 1098 | . 91 311 . 83 122 45 28 375 11 32 Gun 876 | . 91 259 . 55 54 30 21 335 6 25 Cannon 176 | . . 6 . 28 68 15 7 40 5 7 Launcher 10 | . . 10 . . . . . . . . Special 36 | . . 36 . . . . . . . . Kinetic 858 | . 59 244 . 55 107 45 21 309 . 18 Thermal 221 | . 32 67 . 28 15 . 7 59 6 7 Explosive . | . . . . . . . . . . . Electromagnetic 19 | . . . . . . . . 7 5 7 Robot Hit Streak 17 | . 6 17 . 10 8 6 7 12 6 10 Robot Miss Streak 7 | . 6 5 . 3 5 7 2 6 . 7 Penetration Max 3 | . . . . . 2 . . 3 . . Secondary Targets 15 | . 3 5 . . . . . 7 . . Max Gunslinging Chain 1 | . 1 1 . . . . . 1 . . Shots Hit Robots 618 | . 44 156 4 50 78 25 19 219 2 21 Core Hits 285 | . 26 56 . 23 34 13 6 122 . 5 Critical Kills 30 | . . 1 . 1 5 2 1 20 . . Critical Parts Destroyed 49 | . . . . 1 11 6 1 30 . . Critical Strikes 96 | . 2 2 . 2 25 9 3 52 1 . Burn 3 | . 2 . . . . . . 1 . . Meltdown 2 | . . 1 . 1 . . . . . . Destroy 89 | . . 1 . 1 25 9 3 50 . . Corrupt 2 | . . . . . . . . 1 1 . Melee Attacks 9 | . . . 4 . 5 . . . . . Impact . | . . . . . . . . . . . Slashing . | . . . . . . . . . . . Piercing 5 | . . . . . 5 . . . . . Sneak Attacks 5 | . . . 4 . 1 . . . . . Combat Hostiles 1 | . . . . . 1 . . . . . Follow-up Attacks . | . . . . . . . . . . . Damage Inflicted 14653 | . 667 2678 . 1060 2040 457 490 6583 147 531 Guns 10086 | . 634 2508 . 562 708 153 360 4745 . 416 Cannons 3484 | . . 154 . 498 1316 304 130 820 147 115 Explosions 996 | . . . . . . . . 996 . . Melee 8 | . . . . . 8 . . . . . Ramming 79 | . 33 16 . . 8 . . 22 . . Kinetic 10571 | . 397 2330 . 562 1753 457 360 4404 . 308 Thermal 2482 | . 237 332 . 498 271 . 130 906 . 108 Explosive . | . . . . . . . . . . . Electromagnetic 1513 | . . . . . . . . 1251 147 115 Impact . | . . . . . . . . . . . Slashing . | . . . . . . . . . . . Piercing 8 | . . . . . 8 . . . . . Highest Corruption 63 | . 2 2 2 . . . . 33 8 63 Average Corruption 4 | . 1 2 2 . . . . 18 7 13 Corruption Purged 5 | . . . . . . . . 5 . . Corruption Blocked 2 | . . . . 2 . . . . . . Effects 189 | . 12 99 . . . . . 49 1 28 Message Errors 59 | . 5 37 . . . . . 11 . 6 Matter Fused 35 | . 3 19 . . . . . 8 1 4 Heat Flow Errors 14 | . 1 9 . . . . . 2 . 2 Energy Discharges 18 | . . 9 . . . . . 4 . 5 Parts Rejected 3 | . . . . . . . . 1 . 2 Parts Fused 1 | . . 1 . . . . . . . . Data Loss (minor) 22 | . 1 12 . . . . . 8 . 1 Data Loss (major) 11 | . 1 7 . . . . . 1 . 2 Misfires 7 | . . 4 . . . . . 1 . 2 Alerts 2 | . 1 1 . . . . . . . . Misdirections 1 | . . . . . . . . 1 . . Weapon Failures 16 | . . . . . . . . 12 . 4 Overload Shots . | . . . . . . . . . . . Overflow Damage 125 | . . . . 13 . . . 15 97 . Projectiles 110 | . . . . 13 . . . . 97 . Explosions 15 | . . . . . . . . 15 . . Melee . | . . . . . . . . . . . Knockbacks 3 | . . . . . 3 . . . . . Impact . | . . . . . . . . . . . Kinetic 3 | . . . . . 3 . . . . . Secondary . | . . . . . . . . . . . Self-Inflicted Damage 291 | . . 26 . . . . . 265 . . Shots 5 | . . 1 . . . . . 4 . . Rammed 11 | . 4 3 . . . . . 4 . . Targets Rammed 13 | . 5 3 . . 1 . . 4 . . Kicked 1 | . . . . . 1 . . . . . Crushed 1 | . 1 . . . . . . . . . Highest Temperature 377 | . 246 258 . 359 331 240 199 377 316 305 Average Temperature 102 | . 56 68 . 119 93 117 114 123 106 87 Received Heat Transfer 1837 | . 78 210 . 171 243 18 27 1090 . . Effects 3 | . . . . . 1 . . 1 1 . Energy Bleed 3 | . . . . . 1 . . 1 1 . Siege Activations 4 | . . . . . . . . 4 . . Total Turns 176 | . . . . . . . . 176 . . Longest Duration 87 | . . . . . . . . 87 . . Martial Activations . | . . . . . . . . . . . Shielding Activations . | . . . . . . . . . . . Robots Disrupted . | . . . . . . . . . . . Combat Hostiles . | . . . . . . . . . . . Robots Corrupted 3 | . . . . . . . . 3 . . Combat Hostiles 2 | . . . . . . . . 2 . . Parts Fried 15 | . . . . . . . . 12 3 . Impact Corruptions . | . . . . . . . . . . . Robots Melted 2 | . . 1 . 1 . . . . . . Combat Hostiles 2 | . . 1 . 1 . . . . . . Parts Melted 9 | . 1 2 . 4 . . 1 1 . . Heat Transferred 4029 | . 851 385 . 666 370 . 200 1465 . 92 Parts Sabotaged 1 | . . . . . . . . 1 . . Parts Stolen . | . . . . . . . . . . . Parts Stripped . | . . . . . . . . . . . Power Chain Reactions 2 | . . . . . . . . 2 . . Alert | -11 -10 -10 -8 -6 -6 -6 -6 -6 -5 -5 ------- Run | Yrd Mat Sub Scr Fac Ext Cet Arc Hub Fac Upp Maximum Alert Level 5 | . . . . . 1 . . 5 3 . Low Security (%) 80 | 100 100 . . 100 94 100 100 45 . . Level 1 1 | . . . . . 5 . . . . . Level 2 . | . . . . . . . . . . . Level 3 8 | . . . . . . . . 14 100 . Level 4 8 | . . . . . . . . 37 . . Level 5 . | . . . . . . . . 2 . . High Security . | . . . . . . . . . . . Max Security . | . . . . . . . . . . . Peak Influence 2099 | . 92 . . 106 230 164 98 2099 1059 . Initial 1028 | . . . . . . 121 4 13 1028 . Average 246 | . 21 . . 30 40 85 56 705 1029 . Influence Increases 4813 | . 366 130 . 228 734 316 158 2709 172 . Destroy 0b10 Robot/C 1900 | . 240 100 . 140 380 160 80 800 . . Destroy 0b10 Robot/NC 165 | . 35 . . 15 25 10 . 70 10 . Destroy Leader 346 | . 54 . . 42 36 . . 212 2 . Allied During Kill 318 | . . . . 1 185 118 12 2 . . Trap Triggered on 0b10 10 | . . . . . . . . 10 . . Successful Hack 232 | . 36 . . 12 52 . . 21 111 . Disable Machine 960 | . . . . 15 . 15 60 825 45 . Anti-Garrison Action 150 | . . . . . . . . 150 . . Destroy Structure 477 | . 1 . . 3 11 13 6 439 4 . Lose Combat Pursuer 255 | . . 30 . . 45 . . 180 . . Influence Decreases 4721 | . 351 51 94 228 516 523 131 648 1289 890 Entered New Map 1666 | . . 8 94 . . 97 7 25 1071 364 Time Decay 2114 | . 351 33 . 228 289 246 80 403 198 286 Lost Part 435 | . . 10 . . 5 20 . 200 20 180 Lost Ally 356 | . . . . . 72 160 44 20 . 60 Purge Threat 150 | . . . . . 150 . . . . . Squads Dispatched 23 | . 5 . . 2 2 . . 14 . . Investigation 4 | . 3 . . . 1 . . . . . Extermination 4 | . . . . 1 . . . 3 . . Reinforcement 9 | . 2 . . 1 1 . . 5 . . Assault 3 | . . . . . . . . 3 . . Garrison 3 | . . . . . . . . 3 . . Intercept . | . . . . . . . . . . . Searches Triggered . | . . . . . . . . . . . Unchained Authorized 2 | . . . . . . . . . 1 1 Construction Impeded 2 | . . . . . 1 . . 1 . . Haulers Reinforced . | . . . . . . . . . . . Active Scanning Responses . | . . . . . . . . . . . Cargo Convoy Interrupts . | . . . . . . . . . . . Stealth | -11 -10 -10 -8 -6 -6 -6 -6 -6 -5 -5 --------- Run | Yrd Mat Sub Scr Fac Ext Cet Arc Hub Fac Upp Distress Signals 7 | . 1 . . 1 . 2 1 2 . . Communications Jammed . | . . . . . . . . . . . Distress Signals . | . . . . . . . . . . . Times Spotted 154 | . 16 25 . 10 26 9 3 62 2 1 Peak Tracking Total 12 | . 3 4 . 4 4 5 1 12 1 1 Tactical Retreats 13 | . . 1 . . 3 . . 9 . . Traps | -11 -10 -10 -8 -6 -6 -6 -6 -6 -5 -5 ------- Run | Yrd Mat Sub Scr Fac Ext Cet Arc Hub Fac Upp Traps Triggered 9 | . 4 . . . 3 . . 1 1 . Indirectly . | . . . . . . . . . . . Trap Hack Attempts . | . . . . . . . . . . . Triggered . | . . . . . . . . . . . Disarmed . | . . . . . . . . . . . Reprogrammed 10 | . . . . . . . . 10 . . Reused 1 | . . . . . . . . 1 . . Traps Extracted . | . . . . . . . . . . . Installed 1 | . . . . . . . . 1 . . Triggered 1 | . . . . . . . . 1 . . Most Traps Carried 1 | . . . 1 1 1 1 1 1 . . Machines | -11 -10 -10 -8 -6 -6 -6 -6 -6 -5 -5 ---------- Run | Yrd Mat Sub Scr Fac Ext Cet Arc Hub Fac Upp Machines Disabled 69 | . . 1 . 1 2 1 4 56 3 1 Max in Single Turn 27 | . . 1 . 1 . 1 1 27 2 1 Garrison Access 1 | . . . . . . . . 1 . . Network Hub 4 | . . . . . . . . 4 . . Machines Repaired . | . . . . . . . . . . . Machines Dismantled . | . . . . . . . . . . . Machines Sabotaged . | . . . . . . . . . . . Overloaded Fab Kills . | . . . . . . . . . . . Hacking | -11 -10 -10 -8 -6 -6 -6 -6 -6 -5 -5 --------- Run | Yrd Mat Sub Scr Fac Ext Cet Arc Hub Fac Upp Machines Accessed 37 | . 6 2 5 2 14 . . 4 4 . Terminals 24 | . 5 . . . 13 . . 3 3 . Fabricators 1 | . . . . 1 . . . . . . Repair Stations 2 | . 1 . . . . . . . 1 . Recycling Units 1 | . . . . . 1 . . . . . Scanalyzers 1 | . . . . 1 . . . . . . Garrison Access 1 | . . . . . . . . 1 . . Total Hacks 132 | . 23 5 23 6 32 . . 18 25 . Successful 89 | . 18 5 23 2 17 . . 10 14 . Failed 43 | . 5 . . 4 15 . . 8 11 . Catastrophic 8 | . . . . . 4 . . 1 3 . Database Lockouts . | . . . . . . . . . . . Manual 39 | . 9 . . 2 11 . . 9 8 . Terminals 71 | . 12 . . . 27 . . 17 15 . Fabricators 4 | . . . . 4 . . . . . . Repair Stations 21 | . 11 . . . . . . . 10 . Recycling Units 5 | . . . . . 5 . . . . . Scanalyzers 2 | . . . . 2 . . . . . . Garrison Access 1 | . . . . . . . . 1 . . Terminal Hacks 54 | . 4 5 23 . 11 . . 7 4 . Record 21 | . . 4 17 . . . . . . . Part Schematic 4 | . . . . . 3 . . . 1 . Robot Analysis 7 | . 1 . 5 . . . . . 1 . Prototype ID Bank 2 | . 1 . . . . . . . 1 . Open Door 4 | . . . . . 4 . . . . . Level Access Points 1 | . . . . . . . . 1 . . Scanalyzer Index 1 | . 1 . . . . . . . . . Unreport Threat 1 | . . . . . 1 . . . . . Locate Traps 4 | . . . . . 2 . . 1 1 . Reprogram Traps 2 | . . . . . . . . 2 . . Recall Investigation 3 | . 1 . . . 1 . . 1 . . Recall Reinforcements 1 | . . . . . . . . 1 . . Zone Layout 1 | . . . . . . . . 1 . . Proto ID Catalog 2 | . . 1 1 . . . . . . . Fabricator Hacks 1 | . . . . 1 . . . . . . Network Status 1 | . . . . 1 . . . . . . Repair Station Hacks 16 | . 10 . . . . . . . 6 . Scan Component 8 | . 5 . . . . . . . 3 . Repair 8 | . 5 . . . . . . . 3 . Recycling Unit Hacks 1 | . . . . . 1 . . . . . Retrieve Components 1 | . . . . . 1 . . . . . Scanalyzer . | . . . . . . . . . . . Garrison Access Hacks . | . . . . . . . . . . . Unauthorized Hacks 17 | . 4 . . 1 5 . . 3 4 . Terminals 13 | . 4 . . . 2 . . 3 4 . Botnet 12 | . 4 . . . 2 . . 3 3 . Operators 1 | . . . . . . . . . 1 . Fabricators 1 | . . . . 1 . . . . . . Liberate 1 | . . . . 1 . . . . . . Repair Stations . | . . . . . . . . . . . Recycling Units 3 | . . . . . 3 . . . . . Reject 1 | . . . . . 1 . . . . . Recyclers 1 | . . . . . 1 . . . . . Mask 1 | . . . . . 1 . . . . . Scanalyzers . | . . . . . . . . . . . Garrison Access . | . . . . . . . . . . . Data Cores Recovered 1 | . . . . . . . . 1 . . Used . | . . . . . . . . . . . Hacking Detections 25 | . 5 . . 2 11 . . 3 4 . Full Trace Events 1 | . . . . . 1 . . . . . Feedback Events . | . . . . . . . . . . . Feedback Blocked . | . . . . . . . . . . . Robot Schematics Acquired . | . . . . . . . . . . . Robots Built . | . . . . . . . . . . . Authchips . | . . . . . . . . . . . Time . | . . . . . . . . . . . Total Robot Build Rating . | . . . . . . . . . . . Part Schematics Acquired 4 | . . . . . 3 . . . 1 . Parts Built . | . . . . . . . . . . . Authchips . | . . . . . . . . . . . Time . | . . . . . . . . . . . Total Part Build Rating . | . . . . . . . . . . . Part Studies Acquired . | . . . . . . . . . . . Parts Repaired 8 | . 5 . . . . . . . 3 . Time 228 | . 130 . . . . . . . 98 . Parts Recycled . | . . . . . . . . . . . Recycled Matter . | . . . . . . . . . . . Retrieved Matter . | . . . . . . . . . . . Retrieved Components 10 | . . . . . 10 . . . . . Parts Scanalyzed . | . . . . . . . . . . . Part Schematics Acquired . | . . . . . . . . . . . Parts Damaged . | . . . . . . . . . . . Bothacking | -11 -10 -10 -8 -6 -6 -6 -6 -6 -5 -5 ------------ Run | Yrd Mat Sub Scr Fac Ext Cet Arc Hub Fac Upp Used RIF Installer . | . . . . . . . . . . . Robots Hacked 4 | . . . 4 . . . . . . . Non-combat 1 | . . . 1 . . . . . . . Combat 3 | . . . 3 . . . . . . . Robot Hacks Applied 4 | . . . 4 . . . . . . . parse_system 4 | . . . 4 . . . . . . . Relay Couplers Released 1 | . . . . . . . . 1 . . Machine Destruction 1 | . . . . . . . . 1 . . Fabnet Peak Effective % . | . . . . . . . . . . . Robots Rewired 18 | . . . . . 15 . . . . 3 Allies Hacked . | . . . . . . . . . . . Hacks Repelled . | . . . . . . . . . . . Allies | -11 -10 -10 -8 -6 -6 -6 -6 -6 -5 -5 -------- Run | Yrd Mat Sub Scr Fac Ext Cet Arc Hub Fac Upp Total Allies 28 | . . . . 3 22 . . . . 3 Largest Group 14 | . . . . 3 14 13 4 1 . 3 Highest-Rated Group 505 | . . . . 87 505 353 109 29 . 90 Highest-Rated Ally 159 | . . . . 29 159 39 39 29 . 30 Total Orders . | . . . . . . . . . . . Ally Attacks 160 | . . . . 8 85 38 11 2 . 16 Total Damage 3450 | . . . . 134 2039 614 217 18 . 428 Kills 22 | . . . . 1 10 8 2 1 . . Allies Corrupted 3 | . . . . . . . . . . 3 Allies Melted . | . . . . . . . . . . . Intel | -11 -10 -10 -8 -6 -6 -6 -6 -6 -5 -5 ------- Run | Yrd Mat Sub Scr Fac Ext Cet Arc Hub Fac Upp Active Infowar (turns) 1566 | . . . . 186 . . . 462 407 511 Optics 510 | . . . . . . . . . . 510 Sensors 382 | . . . . . . . . . 69 313 IFF 455 | . . . . . . . . 126 329 . Terrain 1079 | . . . . 186 . . . 461 407 25 Robot Analysis Total 7 | . 1 . 5 . . . . . 1 . Derelict Logs Recovered 6 | . . 1 5 . . . . . . . Drone Launches . | . . . . . . . . . . . Drone Recoveries . | . . . . . . . . . . . Exploration | -11 -10 -10 -8 -6 -6 -6 -6 -6 -5 -5 ------------- Run | Yrd Mat Sub Scr Fac Ext Cet Arc Hub Fac Upp Turns Passed 22189 | 77 2107 8207 5643 739 1848 535 168 1819 407 639 Spaces Moved 10039 | 44 905 4060 2314 354 829 259 84 726 282 182 Core 210 | 3 . . 207 . . . . . . . Treads 5344 | 41 905 3663 . . . 135 84 516 . . Legs 4485 | . . 397 2107 354 829 124 . 210 282 182 Wheels . | . . . . . . . . . . . Hover . | . . . . . . . . . . . Flight . | . . . . . . . . . . . Fastest Speed 50 | 50 160 160 50 120 120 120 160 100 110 112 Average Speed 190 | 152 196 181 241 170 166 171 160 148 118 170 Slowest Speed 750 | 160 240 260 750 190 190 240 160 240 184 240 Overloaded Moves . | . . . . . . . . . . . Propulsion Burnouts . | . . . . . . . . . . . Robots Hopped 1 | . . . . . . 1 . . . . Potential Cave-ins 10 | . . 8 . . . . . . 2 . Cave-ins Triggered . | . . . . . . . . . . . Exploration Rate (%) 52 | 4 97 97 92 10 86 56 74 44 8 14 Regions Visited 10 Branch Regions 7 Pre-discovered Areas 6 | . . 1 5 . . . . . . . Known Exits Taken 3 | . . . . 1 . . . 1 1 . Unknown Exits Taken 7 | 1 1 1 1 . 1 1 1 . . . Scrap Searched 8 | . . 4 4 . . . . . . . Spaces Dug 69 | . . 64 . 1 . . . 3 1 . Terrain Destroyed 863 | . . 157 . 2 20 1 3 674 4 2 Melee . | . . . . . . . . . . . Projectile 107 | . . 25 . 2 20 1 3 50 4 2 AOE 754 | . . 132 . . . . . 622 . . Terrain Rammed . | . . . . . . . . . . . Walls Destroyed . | . . . . . . . . . . . Machines Disabled . | . . . . . . . . . . . Actions | -11 -10 -10 -8 -6 -6 -6 -6 -6 -5 -5 --------- Run | Yrd Mat Sub Scr Fac Ext Cet Arc Hub Fac Upp Total 12119 | 51 1142 4514 2388 425 1211 321 101 1146 344 476 Wait 746 | . 137 149 . 1 61 2 4 154 32 206 Move 10027 | 43 904 4059 2313 353 828 256 83 725 281 182 Hop 1 | . . . . . . 1 . . . . Pick Up 153 | 2 26 22 30 9 17 11 1 23 8 4 Fast Attach 80 | 6 4 8 9 2 13 5 1 28 2 2 Attach 58 | . 3 1 6 9 10 3 . 16 3 7 Detach 8 | . . . 2 1 . . . 5 . . Swap 82 | . 6 20 2 8 14 8 2 16 2 4 Drop 155 | . 11 30 22 9 30 20 3 22 5 3 Fire 533 | . 46 198 . 33 47 15 7 152 11 24 Melee 9 | . . . 4 . 5 . . . . . Ram . | . . . . . . . . . . . Kick 1 | . . . . . 1 . . . . . Crush 12 | . 5 3 . . . . . 4 . . Escape Stasis 15 | . . . . . 15 . . . . . Rewire 214 | . . . . . 170 . . . . 44 Trap 1 | . . . . . . . . 1 . . Miscellaneous 24 | . . 24 . . . . . . . . Route ------- -11/Scrapyard -10/Materials (discovered 6 exits: [*Mat x3] / [*Min x2] / *Sub) -10/Subcaves (discovered 4 exits: [*Mat x2] / *Scr x2) -8/Scraptown (discovered 2 exits: *Fac x2) -6/Factory (discovered 6 exits: Fac x4 / Low / *Ext) -6/Extension (discovered 2 exits: *Fac / [*Cet]) -6/Cetus (discovered 2 exits: *Fac / [*Arc]) -6/Archives (discovered 3 exits: *Fac / *Hub x2) -6/Hub_04(d) (discovered 4 exits: *Fac x4) -5/Factory -5/Upper Caves (discovered 1 exit: Upp) History --------- Turn | Location | Event 12 | -11/Scrapyard | Discovered new exit (range 14) 78 | -11/Scrapyard | Entered Materials 79 | -10/Materials | Met a group of wandering Federalists 302 | -10/Materials | Build established: Mutant 435 | -10/Materials | Discovered new exit (range 12) 540 | -10/Materials | Discovered new exit (range 14) 785 | -10/Materials | Discovered new exit (range 6) 1013 | -10/Materials | Discovered new exit (range 7) 1460 | -10/Materials | Repaired Lgt. Armor Plating 1487 | -10/Materials | Repaired Lgt. Treads 1514 | -10/Materials | Repaired Lgt. Treads 1540 | -10/Materials | Repaired Ion Engine 1568 | -10/Materials | Repaired Lgt. Treads 1768 | -10/Materials | Discovered new exit (range 10) 2164 | -10/Materials | Discovered new exit (range 9) 2185 | -10/Materials | Entered Subcaves 2186 | -10/Subcaves | Continued accompanying wandering Federalists (3) 2186 | -10/Subcaves | Approached by a straggling Scientist 2346 | -10/Subcaves | Visited Clippyterm 2353 | -10/Subcaves | Learned Materials non-interactive machine intel 2358 | -10/Subcaves | Learned location of Section 7 (-2) 2580 | -10/Subcaves | Scientist uncovered a shortcut to Scraptown 3094 | -10/Subcaves | Discovered new exit (range 3) 3173 | -10/Subcaves | Ambushed by angry Subdweller bent on revenge 4187 | -10/Subcaves | A swath of the cavern ceiling suddenly collapsed 5210 | -10/Subcaves | Visited 4L-MR0's lab 5236 | -10/Subcaves | Core integrity fell below 50% 6325 | -10/Subcaves | Shifting Twisted Machinery released Sub. Beam Cannon 6398 | -10/Subcaves | Shifting Twisted Machinery released Ripper 6414 | -10/Subcaves | Discovered new exit (range 13) 7146 | -10/Subcaves | Ambushed by Subdweller buried in earth 7589 | -10/Subcaves | Ambushed by Subdweller buried in earth 7589 | -10/Subcaves | Ambushed by Subdweller buried in earth 8658 | -10/Subcaves | Ambushed by Subdweller buried in earth 8661 | -10/Subcaves | Core integrity fell below 20% 9763 | -10/Subcaves | Found Rainbow Chip 10392 | -10/Subcaves | Entered Scraptown 10398 | -8/Scraptown | System corruption cleaned by C-Scrubber 10515 | -8/Scraptown | Heard Great Nut preacher, LISTEN AND RECITE! 10764 | -8/Scraptown | Visited Cave Peace 10824 | -8/Scraptown | Visited Shadow of the Wyrm 10866 | -8/Scraptown | Visited Fellowship of the Rings 10944 | -8/Scraptown | Visited Spacefarers 11529 | -8/Scraptown | Scanned Subdweller tech in exchange for log data 11534 | -8/Scraptown | Learned Research trap positions 11536 | -8/Scraptown | Learned 8 Factory zone layouts 11542 | -8/Scraptown | Learned location of 1 exit from Upper Caves 11544 | -8/Scraptown | Learned Factory security intel 11547 | -8/Scraptown | Learned location of Extension (-6) 11640 | -8/Scraptown | Visited Red Mages 11700 | -8/Scraptown | Visited Cyclists 11916 | -8/Scraptown | Visited UFD Registry 11916 | -8/Scraptown | Registered with UFD as "Armormachine" 11971 | -8/Scraptown | Visited Comm Corps 12202 | -8/Scraptown | Guru changed UFD alias to "Dualgrid" 12259 | -8/Scraptown | Discovered new exit (range 9) 12792 | -8/Scraptown | Entered Cyclist Reading Room 13214 | -8/Scraptown | Visited Curators Association 13300 | -8/Scraptown | Visited Scrapoid Research Area 13388 | -8/Scraptown | Visited Chapter 10 13458 | -8/Scraptown | Visited Junk Repository 13577 | -8/Scraptown | Delivered Scrap Shield to a Scientist 13860 | -8/Scraptown | Visited Research Penetration Think Tank 13915 | -8/Scraptown | Visited Analyses Database 13964 | -8/Scraptown | Visited Supply Room 14063 | -8/Scraptown | Visited Science Guys 14160 | -8/Scraptown | Visited Cartography Club 14207 | -8/Scraptown | Found Surveybot 17 Chip 14260 | -8/Scraptown | Found Deep Structural Scanner 14266 | -8/Scraptown | Learned location of Archives (-6) 14266 | -8/Scraptown | Learned location of Quarantine (-2) 14266 | -8/Scraptown | Learned 8 Materials zone layouts 14266 | -8/Scraptown | Learned 8 Factory zone layouts 14266 | -8/Scraptown | Learned 16 Factory zone layouts 14266 | -8/Scraptown | Learned 4 Recycling zone layouts 14266 | -8/Scraptown | Learned 16 Proximity Caves zone layouts 14266 | -8/Scraptown | Learned location of 3 exits from Factory 14266 | -8/Scraptown | Learned location of 3 exits from Proximity Caves 15892 | -8/Scraptown | Met Optimus 15892 | -8/Scraptown | Accepted into 0bPrime 16030 | -8/Scraptown | Discovered new exit (range 3) 16035 | -8/Scraptown | Entered Factory 16035 | -6/Factory | Evolved 8 slots: Propulsion x3, Utility x4, Weapon x1 16036 | -6/Factory | Identified exit to Factory 16037 | -6/Factory | Identified exit to Lower Caves 16037 | -6/Factory | Identified exit to Extension 16549 | -6/Factory | Build established: Scavenger-Tank 16774 | -6/Factory | Entered Extension 17287 | -6/Extension | Build established: Scavenger-Mutant 17403 | -6/Extension | Attached Rainbow Chip, gained temporary slots: Power, Propulsion, Utility, Weapon 17412 | -6/Extension | Rescued a captive Derelict 17434 | -6/Extension | Rescued a captive Derelict 17435 | -6/Extension | Rescued a captive Derelict 17562 | -6/Extension | Rescued A7 17764 | -6/Extension | Spotted B-75 Beast 17781 | -6/Extension | Spotted B-75 Beast 17787 | -6/Extension | Destroyed B-75 Beast 17805 | -6/Extension | Build established: Hacker-Gunner 17823 | -6/Extension | Allies destroyed B-75 Beast 17832 | -6/Extension | Lost 5 allies 18194 | -6/Extension | Rescued a captive Derelict 18197 | -6/Extension | Rescued a captive Derelict 18385 | -6/Extension | Build established: Commander-Tank 18577 | -6/Extension | Discovered exit to Factory (range 10) 18580 | -6/Extension | Discovered new exit (range 6) 18622 | -6/Extension | Entered Cetus 18622 | -6/Cetus | Accompanied by 13 allies 18638 | -6/Cetus | Spotted Cetus Guard 18638 | -6/Cetus | Spotted Cetus Guard 18640 | -6/Cetus | Destroyed Cetus Guard 18641 | -6/Cetus | Spotted Cetus Guard 18653 | -6/Cetus | Allies destroyed Cetus Guard 18654 | -6/Cetus | Spotted Cetus Guard 18674 | -6/Cetus | Allies destroyed Cetus Guard 18675 | -6/Cetus | Cetus Manufacturing Module disabled 18676 | -6/Cetus | Allies destroyed Cetus Guard 18702 | -6/Cetus | Lost 5 allies 18821 | -6/Cetus | Discovered new exit (range 16) 18868 | -6/Cetus | Spotted Cetus Guard 18869 | -6/Cetus | Spotted Cetus Guard 18885 | -6/Cetus | Allies destroyed Cetus Guard 18889 | -6/Cetus | Destroyed Cetus Guard 18889 | -6/Cetus | Spotted Cetus Guard 18897 | -6/Cetus | Allies destroyed Cetus Guard 18905 | -6/Cetus | Discovered exit to Factory (range 16) 18915 | -6/Cetus | Met Revision 17 18926 | -6/Cetus | Lost 3 allies 19157 | -6/Cetus | Entered Archives 19157 | -6/Archives | Accompanied by 4 allies 19226 | -6/Archives | Discovered new exit (range 15) 19228 | -6/Archives | Lost 3 allies 19229 | -6/Archives | Build established: Scavenger-Tank 19245 | -6/Archives | Discovered exit to Factory (range 15) 19278 | -6/Archives | Discovered new exit (range 16) 19325 | -6/Archives | Entered Hub_04(d) 19325 | -6/Hub_04(d) | Accompanied by 1 ally 20158 | -6/Hub_04(d) | Network Hub disabled 20193 | -6/Hub_04(d) | Spotted Lightning 20198 | -6/Hub_04(d) | Spotted Lightning 20208 | -6/Hub_04(d) | Spotted Lightning 20211 | -6/Hub_04(d) | Network Hub disabled 20213 | -6/Hub_04(d) | Destroyed Lightning 20220 | -6/Hub_04(d) | Destroyed Lightning 20223 | -6/Hub_04(d) | Destroyed Lightning 20241 | -6/Hub_04(d) | Lost 3 parts (1p1n1u) 20254 | -6/Hub_04(d) | Destroyed 7 combat bots 20260 | -6/Hub_04(d) | Found Prototype Device 20260 | -6/Hub_04(d) | Identified Exp. EM Shield 20263 | -6/Hub_04(d) | Found Prototype Device 20263 | -6/Hub_04(d) | Identified Exp. Phase Shifter 20275 | -6/Hub_04(d) | Found Prototype Processor 20302 | -6/Hub_04(d) | Found Prototype Energy Cannon 20314 | -6/Hub_04(d) | Found Prototype Energy Cannon 20375 | -6/Hub_04(d) | First assault squad dispatched 20462 | -6/Hub_04(d) | Spotted Lightning 20463 | -6/Hub_04(d) | Spotted Lightning 20467 | -6/Hub_04(d) | Spotted Lightning 20468 | -6/Hub_04(d) | Destroyed Lightning 20477 | -6/Hub_04(d) | Spotted Lightning 20481 | -6/Hub_04(d) | Garrison activated, responded to threat 20486 | -6/Hub_04(d) | Spotted Lightning 20490 | -6/Hub_04(d) | Spotted Lightning 20510 | -6/Hub_04(d) | System corruption reached 10% 20554 | -6/Hub_04(d) | Disrupted transfer network 20571 | -6/Hub_04(d) | Destroyed Lightning 20628 | -6/Hub_04(d) | Lost 7 parts (1p1n2u3w) 20629 | -6/Hub_04(d) | Destroyed Lightning 20644 | -6/Hub_04(d) | Destroyed Lightning 20726 | -6/Hub_04(d) | Destroyed Lightning 20736 | -6/Hub_04(d) | Identified EMDS (x2) 20748 | -6/Hub_04(d) | Core integrity fell below 50% 20784 | -6/Hub_04(d) | Found Prototype Processor 20784 | -6/Hub_04(d) | Identified Exp. Targeting Computer 20798 | -6/Hub_04(d) | Found EMDS 20802 | -6/Hub_04(d) | Lost 7 parts (1p1n2u3w) 20877 | -6/Hub_04(d) | Found Exp. EM Shield 20888 | -6/Hub_04(d) | System corruption reached 30% 20900 | -6/Hub_04(d) | Found EMDS 20904 | -6/Hub_04(d) | Found Exp. EM Shield 20906 | -6/Hub_04(d) | Found EMDS 20947 | -6/Hub_04(d) | Found Exp. Targeting Computer 21054 | -6/Hub_04(d) | Found Exp. Phase Shifter 21100 | -6/Hub_04(d) | Network Hub disabled 21134 | -6/Hub_04(d) | Network Hub disabled 21144 | -6/Hub_04(d) | Entered Factory 21144 | -5/Factory | Evolved 2 slots: Power x2 21145 | -5/Factory | Identified exit to Upper Caves 21223 | -5/Factory | Repaired Centrium Medium Armor Plating? 21261 | -5/Factory | Repaired Gauss Rifle 21288 | -5/Factory | Repaired Gauss Rifle 21310 | -5/Factory | Unchained authorized (DW-4LL) 21448 | -5/Factory | Build established: Scavenger-Skirmisher 21547 | -5/Factory | DW-4LL burst out of a wall 21551 | -5/Factory | Entered Upper Caves 21552 | -5/Upper Caves | Identified exit to Upper Caves 21553 | -5/Upper Caves | UFD Scientist delivered a prototype 21555 | -5/Upper Caves | Found Prototype Protection 21577 | -5/Upper Caves | Identified Enh. Scrap Shield 21752 | -5/Upper Caves | Unchained authorized (DW-4LL) 21764 | -5/Upper Caves | Encountered a Warlord checkpoint 22052 | -5/Upper Caves | DW-4LL burst out of a wall 22070 | -5/Upper Caves | System corruption reached 10% 22119 | -5/Upper Caves | Lost 4 allies 22134 | -5/Upper Caves | System corruption reached 30% 22161 | -5/Upper Caves | Core integrity fell below 50% 22174 | -5/Upper Caves | Core integrity fell below 20% 22190 | -5/Upper Caves | Destroyed by DW-4LL with DW-4LL's Slamshotty Last Messages --------------- 22141_ System corrupted by crushing effect (+2). 22144_ Hvy. Battle Rifle destroyed. 22144_ System corrupted by crushing effect (+2). 22148_ EMDS Slug penetrates DW-4LL. 22149_ Hcp. Storage Unit destroyed. 22149_ System corrupted by crushing effect (+2). 22152_ Quantum Reactor destroyed. 22152_ System corrupted by crushing effect (+4). 22152_ EMDS Slug penetrates DW-4LL. 22153_ EMDS destroyed. 22153_ System corrupted by crushing effect (+3). 22155_ System corrupted: Substantial component data lost. 22155_ Critical hit (Destroy). 22155_ Enh. Biometal Leg destroyed. 22155_ System corrupted by crushing effect (+4). 22157_ Quantum Reactor destroyed. 22157_ System corrupted by crushing effect (+3). 22170_ 6TJ:GBEGJYM :MG<2#HT0 22186_ Centrium Medium Armor Plating destroyed. 22186_ System corrupted by crushing effect (+3). Map ----- +----------------------------------------------------+ | ?????????????????????????????????????????????????? | | ?????????????????????????????????????????????????? | | ?????????????????????????????????????????????????? | | ?????????????????????????????????????????????????? | | ?????????????????????????????????????????????????? | | ?????????????????????????????????????????????????? | | ?????????????????????????????????????????????????? | | ?????????????????###?????????????????????????????? | | ####????##?????## ###???????????????????????????? | | ##??# ###???# ##??????????????????????????? | | ### #???# #??????????????????????????? | | # #????## #???????????????????????????? | | #???#### #????????????????????????????? | | ##??## ##???????????????????????????? | | # * #?### ##??????????????????????????? | | # ###" #??#???????????????????????? | | ## #???????????????????????????????? | | ] #???????????????????????????????? | | # #????????????#??????????????????? | | ## ## #?????#?????????????????????????? | | ##" " ## #?????# ?#??????????????????????? | | ?## " ## #?????# ????????????????????????? | | ??# " ## ##????# ????#???????????????????? | | ? "% % ## ##???# ##? #??????#????????????? | | ##" ########## #?###;!#!#?#??????????????????? | | # % %#???????## "#?#!!!@=!#????????#???????????? | | #???????## ##?##!=*="#?#??#???????????????? | | #?????### ##??##8####????????????????????? | | "###????## #???#! ##????????????????????? | | ######### ##??#### #????#???????????????? | | #### # #??????????????????? | | ## #??????????????????? | | ######## ###" #### #??????????????????? | | ?????????####?## ### #??????????????????? | | ????????????????## ##??????#???????????? | | ?????????????????## #???????????????????? | | ???? ?? ??????????## ##???#???????????????? | | ?? ????????????????#### ###????????????????????? | | ?????????????????#?????? #??????????????????????? | | ?????????????????#?????? #?????????????????????? | | ???????????????????????? #?????????????????????? | | ???????????????????????? #?????????????????????? | | ?????????????????#?????? ?????????????????????? | | ???????????????????????? #????????#???????????? | | ????????????????????????#####????????????????????? | | ?????????????????????????????????????????????????? | | ?????????????????????????????????????????????????? | | ??????????????????#??????????????????????????????? | | ?????????????????????????????????????????????????? | | ?????????????????????????????????????????????????? | +----------------------------------------------------+ Best States ------------- Heat Dissipation 63 Coolant Potential 65 Energy Generation 65 Energy Capacity 850 Matter Stores 300 Matter Capacity 300 Sight Range 22 Robot Scan Range 15 Terrain Scan Range 20 Terrain Scan Density 1210 Corruption Containment 8 Corruption Block 3 Armor Coverage 1650 Resistance: EM 75 Evasion (%) 55 Targeting Accuracy 24 Recoil Reduction 9 Kinecelleration 30 Offensive Hacking 12 Defensive Hacking 10 Item Schematics ----------------- Flexi-carbon Leg | -6/Extension | Hacked Myomer Leg | -6/Extension | Hacked Lrn. Tractor Beam | -6/Extension | Hacked Adv. Coolant Injector | -5/Factory | Hacked Robot Schematics ------------------ None Fabricated ------------ Nothing Repaired ---------- Lgt. Armor Plating | 11% | -10/Materials Lgt. Treads | 28% | -10/Materials Lgt. Treads | 82% | -10/Materials Ion Engine | 68% | -10/Materials Lgt. Treads | 85% | -10/Materials Centrium Medium Armor Plating | 7% | -5/Factory Gauss Rifle | 31% | -5/Factory Gauss Rifle | 49% | -5/Factory Studied --------- None Alien Tech Used ----------------- None Achievements -------------- Barbarian Challenges ------------ None Game ------ Seed RestorationRapidMegatreads Manual? 0 Play Time 02:17:42 Cumulative 401.4 hours Start 2025.12.09 @ 07:11:51 End 2025.12.09 @ 10:24:37 Sessions 3 Manual Loads 0 Difficulty Rogue Special Mode None Game No. 404 Rogue 400 Adventurer 3 Explorer 1 Win Type - Total 5 Types 4/0/1/0/0/0/0/0/0/0 Lore% 86 Gallery% 80 Achievement% 68 Wizard Run 0 Options --------- Layout 0 ASCII 0 Keyboard 0 Movement Mouse Keybinds 0 Fullscreen 2 Font 18/SmallcapsGlow Map View 76x50 Zoom Use 0% Tactical HUD 1 Map Filters NONE Filters NONE Steam 1 RUN: 2662cc9c-0ed7-4fff-b046-df5925c1e280